[Event "Titled Tuesday Blitz April 18 Late 2023"]
[White "Lizak, Peter"]
[Black "Rodshtein, Maxim"]
[WhiteFideId "731595"]
[BlackFideId "2806851"]
[WhiteElo "2420"]
[BlackElo "2555"]
[Result "0-1"]
[Round "06"]
[TimeControl "180+2"]
[Date "2023.04.18"]
[WhiteClock "0:00:09"]
[BlackClock "0:00:17"]

1. d4 {[%clk 0:03:00]}  g6 {[%clk 0:02:59]} 2. e4 {[%clk 0:03:00]}  Bg7 {[%clk 0:03:00]} 3. Nc3 {[%clk 0:03:01]}  d6 {[%clk 0:03:00]} 4. Nf3 {[%clk 0:03:00]}  Nf6 {[%clk 0:03:00]} 5. Bc4 {[%clk 0:03:00]}  O-O {[%clk 0:02:58]} 6. O-O {[%clk 0:02:59]}  Bg4 {[%clk 0:02:55]} 7. h3 {[%clk 0:02:51]}  Bxf3 {[%clk 0:02:55]} 8. Qxf3 {[%clk 0:02:52]}  Nc6 {[%clk 0:02:56]} 9. Rd1 {[%clk 0:02:51]}  e5 {[%clk 0:02:55]} 10. dxe5 {[%clk 0:02:51]}  Nxe5 {[%clk 0:02:55]} 11. Qe2 {[%clk 0:02:52]}  Re8 {[%clk 0:02:52]} 12. Bb3 {[%clk 0:02:50]}  Ned7 {[%clk 0:02:52]} 13. Qc4 {[%clk 0:02:30]}  Ne5 {[%clk 0:02:33]} 14. Qe2 {[%clk 0:02:23]}  Qc8 {[%clk 0:02:31]} 15. a4 {[%clk 0:02:14]}  a6 {[%clk 0:02:23]} 16. a5 {[%clk 0:02:14]}  Ned7 {[%clk 0:02:23]} 17. Qc4 {[%clk 0:02:02]}  Re7 {[%clk 0:02:21]} 18. Bg5 {[%clk 0:01:58]}  Ne5 {[%clk 0:01:49]} 19. Qe2 {[%clk 0:01:41]}  Re8 {[%clk 0:01:48]} 20. f4 {[%clk 0:01:35]}  Nc6 {[%clk 0:01:31]} 21. Qc4 {[%clk 0:01:26]}  Rf8 {[%clk 0:01:31]} 22. Bxf6 {[%clk 0:00:55]}  Bxf6 {[%clk 0:01:30]} 23. Nd5 {[%clk 0:00:56]}  Bxb2 {[%clk 0:01:16]} 24. Rab1 {[%clk 0:00:49]}  Bg7 {[%clk 0:01:16]} 25. Ba4 {[%clk 0:00:40]}  Re8 {[%clk 0:01:08]} 26. Bxc6 {[%clk 0:00:34]}  bxc6 {[%clk 0:01:09]} 27. Qxc6 {[%clk 0:00:34]}  Ra7 {[%clk 0:01:01]} 28. Rb4 {[%clk 0:00:22]}  h5 {[%clk 0:00:57]} 29. Rdb1 {[%clk 0:00:22]}  Kh7 {[%clk 0:00:51]} 30. Rb7 {[%clk 0:00:14]}  Rxb7 {[%clk 0:00:49]} 31. Rxb7 {[%clk 0:00:14]}  Qe6 {[%clk 0:00:19]} 32. Rxc7 {[%clk 0:00:14]}  Qxe4 {[%clk 0:00:19]} 33. Rxf7 {[%clk 0:00:15]}  Kh6 {[%clk 0:00:18]} 34. Qb7 {[%clk 0:00:11]}  Qe1+ {[%clk 0:00:14]} 35. Kh2 {[%clk 0:00:12]}  h4 {[%clk 0:00:14]} 36. Qb3 {[%clk 0:00:06]}  Re2 {[%clk 0:00:14]} 37. Qf3 {[%clk 0:00:05]}  Rd2 {[%clk 0:00:08]} 38. Qg4 {[%clk 0:00:05]}  Qg3+ {[%clk 0:00:08]} 39. Qxg3 {[%clk 0:00:04]}  hxg3+ {[%clk 0:00:09]} 40. Kxg3 {[%clk 0:00:05]}  Rxd5 {[%clk 0:00:10]} 41. Ra7 {[%clk 0:00:05]}  Rxa5 {[%clk 0:00:10]} 42. Kf3 {[%clk 0:00:05]}  Ra3+ {[%clk 0:00:10]} 43. Ke4 {[%clk 0:00:05]}  Ra4+ {[%clk 0:00:11]} 44. Kd3 {[%clk 0:00:05]}  Bd4 {[%clk 0:00:11]} 45. Rd7 {[%clk 0:00:04]}  Bc5 {[%clk 0:00:12]} 46. g3 {[%clk 0:00:04]}  Ra3+ {[%clk 0:00:12]} 47. c3 {[%clk 0:00:04]}  Bb4 {[%clk 0:00:12]} 48. Kc4 {[%clk 0:00:04]}  Bxc3 {[%clk 0:00:12]} 49. Rxd6 {[%clk 0:00:04]}  a5 {[%clk 0:00:11]} 50. g4 {[%clk 0:00:04]}  Bb4 {[%clk 0:00:11]} 51. Rd7 {[%clk 0:00:04]}  Rxh3 {[%clk 0:00:11]} 52. g5+ {[%clk 0:00:04]}  Kh5 {[%clk 0:00:12]} 53. Rh7+ {[%clk 0:00:05]}  Kg4 {[%clk 0:00:13]} 54. Rxh3 {[%clk 0:00:05]}  Kxh3 {[%clk 0:00:14]} 55. f5 {[%clk 0:00:05]}  gxf5 {[%clk 0:00:14]} 56. g6 {[%clk 0:00:06]}  Bf8 {[%clk 0:00:14]} 57. Kd5 {[%clk 0:00:06]}  f4 {[%clk 0:00:15]} 58. Ke4 {[%clk 0:00:07]}  Kg4 {[%clk 0:00:15]} 59. Ke5 {[%clk 0:00:07]}  f3 {[%clk 0:00:15]} 60. Ke6 {[%clk 0:00:08]}  f2 {[%clk 0:00:15]} 61. Kf7 {[%clk 0:00:09]}  f1=Q+ {[%clk 0:00:16]} 62. Kg8 {[%clk 0:00:09]}  Qf6 {[%clk 0:00:16]} 63. g7 {[%clk 0:00:09]}  Qxg7# {[%clk 0:00:17]} 0-1


[Site "https://www.chess.com"]

[Event "Titled Tuesday Blitz April 18 Late 2023"]
[White "Pinheiro, Iung Alicio de O."]
[Black "Llorente Zaro, Alfonso"]
[WhiteFideId "2104350"]
[BlackFideId "2254131"]
[WhiteElo "2283"]
[BlackElo "2485"]
[Result "0-1"]
[Round "06"]
[TimeControl "180+2"]
[Date "2023.04.18"]
[WhiteClock "0:00:03"]
[BlackClock "0:00:22"]

1. e4 {[%clk 0:03:00]}  c5 {[%clk 0:02:49]} 2. Nf3 {[%clk 0:03:00]}  Nc6 {[%clk 0:02:50]} 3. c3 {[%clk 0:02:56]}  Nf6 {[%clk 0:02:46]} 4. e5 {[%clk 0:02:56]}  Nd5 {[%clk 0:02:46]} 5. d4 {[%clk 0:02:51]}  cxd4 {[%clk 0:02:47]} 6. Bc4 {[%clk 0:02:48]}  Nb6 {[%clk 0:02:48]} 7. Bb3 {[%clk 0:02:49]}  d5 {[%clk 0:02:47]} 8. exd6 {[%clk 0:02:49]}  Qxd6 {[%clk 0:02:46]} 9. O-O {[%clk 0:02:49]}  e6 {[%clk 0:02:31]} 10. Na3 {[%clk 0:02:47]}  a6 {[%clk 0:02:18]} 11. Ng5 {[%clk 0:02:35]}  Be7 {[%clk 0:01:57]} 12. Qh5 {[%clk 0:02:29]}  Bxg5 {[%clk 0:01:54]} 13. Bxg5 {[%clk 0:02:23]}  O-O {[%clk 0:01:52]} 14. Bc2 {[%clk 0:02:15]}  f5 {[%clk 0:01:51]} 15. Rad1 {[%clk 0:02:00]}  e5 {[%clk 0:01:50]} 16. f4 {[%clk 0:01:41]}  e4 {[%clk 0:01:39]} 17. cxd4 {[%clk 0:01:40]}  Be6 {[%clk 0:01:39]} 18. d5 {[%clk 0:01:34]}  Bxd5 {[%clk 0:01:34]} 19. Bb3 {[%clk 0:01:33]}  Qc5+ {[%clk 0:01:33]} 20. Kh1 {[%clk 0:01:34]}  Bxb3 {[%clk 0:01:32]} 21. axb3 {[%clk 0:01:34]}  Rae8 {[%clk 0:01:23]} 22. Rfe1 {[%clk 0:01:28]}  Qb4 {[%clk 0:01:15]} 23. Nc4 {[%clk 0:01:16]}  Nxc4 {[%clk 0:01:05]} 24. bxc4 {[%clk 0:01:15]}  Rf7 {[%clk 0:01:02]} 25. Bh4 {[%clk 0:01:01]}  Qxc4 {[%clk 0:00:54]} 26. Rd7 {[%clk 0:00:57]}  Ref8 {[%clk 0:00:49]} 27. Rd2 {[%clk 0:00:31]}  a5 {[%clk 0:00:42]} 28. h3 {[%clk 0:00:30]}  a4 {[%clk 0:00:41]} 29. Red1 {[%clk 0:00:30]}  Nb4 {[%clk 0:00:35]} 30. Rd4 {[%clk 0:00:28]}  Qb5 {[%clk 0:00:33]} 31. Rd8 {[%clk 0:00:24]}  Nd3 {[%clk 0:00:31]} 32. Rxf8+ {[%clk 0:00:23]}  Rxf8 {[%clk 0:00:32]} 33. Rd2 {[%clk 0:00:19]}  Qb4 {[%clk 0:00:30]} 34. Rc2 {[%clk 0:00:19]}  Qb6 {[%clk 0:00:18]} 35. Qg5 {[%clk 0:00:17]}  Qf6 {[%clk 0:00:16]} 36. Qg3 {[%clk 0:00:16]}  Qf7 {[%clk 0:00:16]} 37. Qg5 {[%clk 0:00:15]}  b5 {[%clk 0:00:16]} 38. Qg3 {[%clk 0:00:13]}  b4 {[%clk 0:00:17]} 39. Kh2 {[%clk 0:00:14]}  a3 {[%clk 0:00:17]} 40. bxa3 {[%clk 0:00:14]}  bxa3 {[%clk 0:00:18]} 41. Rc6 {[%clk 0:00:14]}  Ra8 {[%clk 0:00:17]} 42. Qe3 {[%clk 0:00:09]}  a2 {[%clk 0:00:17]} 43. Qd4 {[%clk 0:00:06]}  a1=Q {[%clk 0:00:15]} 44. Qxa1 {[%clk 0:00:05]}  Rxa1 {[%clk 0:00:15]} 45. Rc8+ {[%clk 0:00:06]}  Qf8 {[%clk 0:00:15]} 46. Rxf8+ {[%clk 0:00:05]}  Kxf8 {[%clk 0:00:16]} 47. g4 {[%clk 0:00:05]}  Ra2+ {[%clk 0:00:16]} 48. Kg3 {[%clk 0:00:05]}  g6 {[%clk 0:00:17]} 49. gxf5 {[%clk 0:00:05]}  gxf5 {[%clk 0:00:18]} 50. Bf6 {[%clk 0:00:05]}  Kf7 {[%clk 0:00:18]} 51. Bd4 {[%clk 0:00:06]}  Kg6 {[%clk 0:00:19]} 52. Be3 {[%clk 0:00:05]}  Ra3 {[%clk 0:00:20]} 53. Bd4 {[%clk 0:00:05]}  Rb3 {[%clk 0:00:20]} 54. Be3 {[%clk 0:00:04]}  Nb4 {[%clk 0:00:20]} 55. Kf2 {[%clk 0:00:04]}  Nd5 {[%clk 0:00:21]} 56. Bc1 {[%clk 0:00:03]}  Rf3+ {[%clk 0:00:22]} 57. Kg2 {[%clk 0:00:03]}  Nxf4+ {[%clk 0:00:22]} 0-1


[Site "https://www.chess.com"]

[Event "Titled Tuesday Blitz April 18 Late 2023"]
[White "Flores, Diego"]
[Black "Lenaerts, Lennert"]
[WhiteFideId "108049"]
[BlackFideId "211435"]
[WhiteElo "2613"]
[BlackElo "2334"]
[Result "1-0"]
[Round "06"]
[TimeControl "180+2"]
[Date "2023.04.18"]
[WhiteClock "0:00:24"]
[BlackClock "0:01:26"]

1. Nf3 {[%clk 0:03:00]}  d5 {[%clk 0:02:58]} 2. c4 {[%clk 0:03:00]}  c6 {[%clk 0:02:55]} 3. e3 {[%clk 0:03:00]}  Nf6 {[%clk 0:02:55]} 4. Nc3 {[%clk 0:03:01]}  g6 {[%clk 0:02:56]} 5. d4 {[%clk 0:02:54]}  Bg7 {[%clk 0:02:56]} 6. Be2 {[%clk 0:02:55]}  O-O {[%clk 0:02:56]} 7. O-O {[%clk 0:02:56]}  Bg4 {[%clk 0:02:56]} 8. h3 {[%clk 0:02:55]}  Bxf3 {[%clk 0:02:55]} 9. Bxf3 {[%clk 0:02:56]}  e6 {[%clk 0:02:56]} 10. b3 {[%clk 0:02:54]}  Qe7 {[%clk 0:02:54]} 11. Bb2 {[%clk 0:02:53]}  Nbd7 {[%clk 0:02:53]} 12. Rc1 {[%clk 0:02:53]}  Rfd8 {[%clk 0:02:53]} 13. Qc2 {[%clk 0:02:53]}  Rac8 {[%clk 0:02:53]} 14. Qb1 {[%clk 0:02:51]}  Nb6 {[%clk 0:02:50]} 15. Be2 {[%clk 0:02:48]}  Nbd7 {[%clk 0:02:48]} 16. Rfd1 {[%clk 0:02:48]}  h5 {[%clk 0:02:47]} 17. a3 {[%clk 0:02:43]}  a6 {[%clk 0:02:47]} 18. Bd3 {[%clk 0:02:35]}  e5 {[%clk 0:02:42]} 19. cxd5 {[%clk 0:02:26]}  cxd5 {[%clk 0:02:38]} 20. dxe5 {[%clk 0:02:25]}  Nxe5 {[%clk 0:02:39]} 21. Be2 {[%clk 0:02:22]}  Nc6 {[%clk 0:02:38]} 22. Na4 {[%clk 0:02:15]}  d4 {[%clk 0:02:27]} 23. Rd3 {[%clk 0:01:53]}  Nd7 {[%clk 0:01:51]} 24. exd4 {[%clk 0:01:31]}  Qxe2 {[%clk 0:01:33]} 25. Re1 {[%clk 0:01:27]}  Qxb2 {[%clk 0:01:29]} 26. Nxb2 {[%clk 0:01:17]}  b5 {[%clk 0:01:30]} 27. d5 {[%clk 0:01:05]}  Nc5 {[%clk 0:01:30]} 28. dxc6 {[%clk 0:01:03]}  Nxd3 {[%clk 0:01:30]} 29. Nxd3 {[%clk 0:01:04]}  Rxc6 {[%clk 0:01:31]} 30. Nb4 {[%clk 0:00:43]}  Rcd6 {[%clk 0:01:30]} 31. Nc2 {[%clk 0:00:27]}  Rd3 {[%clk 0:01:28]} 32. Ne3 {[%clk 0:00:26]}  Rc3 {[%clk 0:01:27]} 33. Rd1 {[%clk 0:00:25]}  Rdc8 {[%clk 0:01:26]} 34. Nd5 {[%clk 0:00:24]} 1-0


[Site "https://www.chess.com"]

[Event "Titled Tuesday Blitz April 18 Late 2023"]
[White "Rosen, Eric"]
[Black "Sargsyan, Shant"]
[WhiteFideId "2032562"]
[BlackFideId "13306766"]
[WhiteElo "2331"]
[BlackElo "2628"]
[Result "1-0"]
[Round "06"]
[TimeControl "180+2"]
[Date "2023.04.18"]
[WhiteClock "0:00:04"]
[BlackClock "0:00:03"]

1. e4 {[%clk 0:03:00]}  c5 {[%clk 0:03:00]} 2. Nf3 {[%clk 0:03:01]}  a6 {[%clk 0:02:59]} 3. c3 {[%clk 0:02:57]}  d5 {[%clk 0:02:59]} 4. exd5 {[%clk 0:02:57]}  Qxd5 {[%clk 0:03:00]} 5. d4 {[%clk 0:02:58]}  Nc6 {[%clk 0:03:00]} 6. Be3 {[%clk 0:02:52]}  cxd4 {[%clk 0:02:47]} 7. cxd4 {[%clk 0:02:52]}  e5 {[%clk 0:02:48]} 8. Nc3 {[%clk 0:02:45]}  Bb4 {[%clk 0:02:48]} 9. dxe5 {[%clk 0:02:40]}  Qxd1+ {[%clk 0:02:48]} 10. Rxd1 {[%clk 0:02:39]}  Bg4 {[%clk 0:02:48]} 11. Be2 {[%clk 0:02:32]}  Nge7 {[%clk 0:02:48]} 12. O-O {[%clk 0:02:22]}  Bxc3 {[%clk 0:02:48]} 13. bxc3 {[%clk 0:02:22]}  Nxe5 {[%clk 0:02:49]} 14. Bc5 {[%clk 0:02:11]}  Rc8 {[%clk 0:02:34]} 15. Bb4 {[%clk 0:02:11]}  N5c6 {[%clk 0:02:26]} 16. h3 {[%clk 0:02:03]}  Nxb4 {[%clk 0:02:24]} 17. cxb4 {[%clk 0:01:56]}  Be6 {[%clk 0:02:24]} 18. a3 {[%clk 0:01:41]}  O-O {[%clk 0:02:22]} 19. Nd4 {[%clk 0:01:39]}  Bd5 {[%clk 0:02:23]} 20. Rc1 {[%clk 0:01:39]}  g6 {[%clk 0:02:19]} 21. Bg4 {[%clk 0:01:38]}  f5 {[%clk 0:02:19]} 22. Bf3 {[%clk 0:01:32]}  Kf7 {[%clk 0:02:19]} 23. Rfd1 {[%clk 0:01:28]}  Kf6 {[%clk 0:01:54]} 24. Rxc8 {[%clk 0:01:23]}  Rxc8 {[%clk 0:01:53]} 25. Nxf5 {[%clk 0:00:47]}  Bxf3 {[%clk 0:01:52]} 26. Nxe7 {[%clk 0:00:47]}  Kxe7 {[%clk 0:01:51]} 27. Re1+ {[%clk 0:00:42]}  Kd6 {[%clk 0:01:47]} 28. gxf3 {[%clk 0:00:42]}  Rc4 {[%clk 0:01:41]} 29. Kg2 {[%clk 0:00:38]}  b5 {[%clk 0:01:38]} 30. Re3 {[%clk 0:00:33]}  Kd5 {[%clk 0:01:33]} 31. Rd3+ {[%clk 0:00:27]}  Rd4 {[%clk 0:01:33]} 32. Rc3 {[%clk 0:00:27]}  Rc4 {[%clk 0:01:32]} 33. Rd3+ {[%clk 0:00:27]}  Ke6 {[%clk 0:01:33]} 34. Kg3 {[%clk 0:00:26]}  Rc1 {[%clk 0:01:33]} 35. f4 {[%clk 0:00:24]}  Rg1+ {[%clk 0:01:28]} 36. Kf3 {[%clk 0:00:24]}  Ra1 {[%clk 0:01:27]} 37. Ke4 {[%clk 0:00:24]}  Re1+ {[%clk 0:01:27]} 38. Kd4 {[%clk 0:00:22]}  Kd6 {[%clk 0:01:26]} 39. Re3 {[%clk 0:00:19]}  Rf1 {[%clk 0:01:25]} 40. Rd3 {[%clk 0:00:16]}  Rh1 {[%clk 0:01:15]} 41. Ke4+ {[%clk 0:00:16]}  Ke6 {[%clk 0:01:16]} 42. Re3 {[%clk 0:00:15]}  Rd1 {[%clk 0:01:16]} 43. Rd3 {[%clk 0:00:14]}  Ra1 {[%clk 0:01:15]} 44. Rc3 {[%clk 0:00:13]}  Kd6 {[%clk 0:01:14]} 45. Rd3+ {[%clk 0:00:13]}  Kc6 {[%clk 0:01:12]} 46. Rc3+ {[%clk 0:00:13]}  Kd7 {[%clk 0:01:11]} 47. Kf3 {[%clk 0:00:13]}  Rh1 {[%clk 0:01:10]} 48. Kg3 {[%clk 0:00:13]}  Rg1+ {[%clk 0:01:08]} 49. Kf3 {[%clk 0:00:13]}  Rd1 {[%clk 0:01:07]} 50. Kg4 {[%clk 0:00:13]}  Rd5 {[%clk 0:00:59]} 51. Kf3 {[%clk 0:00:12]}  Rh5 {[%clk 0:00:58]} 52. Ke4 {[%clk 0:00:12]}  Kd6 {[%clk 0:00:59]} 53. Rd3+ {[%clk 0:00:12]}  Ke6 {[%clk 0:00:58]} 54. Rc3 {[%clk 0:00:12]}  Kd6 {[%clk 0:00:57]} 55. Rd3+ {[%clk 0:00:13]}  Kc6 {[%clk 0:00:55]} 56. Rc3+ {[%clk 0:00:13]}  Kb6 {[%clk 0:00:56]} 57. Rd3 {[%clk 0:00:12]}  Rh4 {[%clk 0:00:56]} 58. Ke5 {[%clk 0:00:09]}  Rh5+ {[%clk 0:00:53]} 59. Ke6 {[%clk 0:00:09]}  Rf5 {[%clk 0:00:48]} 60. Rd6+ {[%clk 0:00:08]}  Kb7 {[%clk 0:00:47]} 61. Rd7+ {[%clk 0:00:09]}  Kc8 {[%clk 0:00:48]} 62. Rf7 {[%clk 0:00:09]}  Rh5 {[%clk 0:00:48]} 63. Ra7 {[%clk 0:00:06]}  Rxh3 {[%clk 0:00:45]} 64. Rxa6 {[%clk 0:00:07]}  Kb7 {[%clk 0:00:46]} 65. Ra5 {[%clk 0:00:03]}  Kb6 {[%clk 0:00:45]} 66. Ra8 {[%clk 0:00:03]}  Rf3 {[%clk 0:00:44]} 67. Rb8+ {[%clk 0:00:03]}  Kc6 {[%clk 0:00:42]} 68. Rc8+ {[%clk 0:00:04]}  Kb7 {[%clk 0:00:42]} 69. Rh8 {[%clk 0:00:04]}  h5 {[%clk 0:00:40]} 70. Rh7+ {[%clk 0:00:03]}  Kb6 {[%clk 0:00:40]} 71. Ke5 {[%clk 0:00:03]}  Rxf2 {[%clk 0:00:38]} 72. Rh6 {[%clk 0:00:03]}  Re2+ {[%clk 0:00:35]} 73. Kd5 {[%clk 0:00:03]}  Rd2+ {[%clk 0:00:22]} 74. Ke5 {[%clk 0:00:03]}  Re2+ {[%clk 0:00:22]} 75. Kd5 {[%clk 0:00:04]}  Re3 {[%clk 0:00:18]} 76. Rxg6+ {[%clk 0:00:03]}  Kc7 {[%clk 0:00:19]} 77. Rh6 {[%clk 0:00:04]}  Rh3 {[%clk 0:00:16]} 78. Kc5 {[%clk 0:00:03]}  Rxa3 {[%clk 0:00:10]} 79. Kxb5 {[%clk 0:00:03]}  Rf3 {[%clk 0:00:10]} 80. Rh7+ {[%clk 0:00:02]}  Kd6 {[%clk 0:00:10]} 81. Rh6+ {[%clk 0:00:02]}  Kc7 {[%clk 0:00:10]} 82. Rh7+ {[%clk 0:00:03]}  Kd6 {[%clk 0:00:09]} 83. Rxh5 {[%clk 0:00:04]}  Rxf4 {[%clk 0:00:09]} 84. Rc5 {[%clk 0:00:04]}  Kd7 {[%clk 0:00:08]} 85. Rc1 {[%clk 0:00:04]}  Kd6 {[%clk 0:00:07]} 86. Ka5 {[%clk 0:00:04]}  Rf8 {[%clk 0:00:06]} 87. b5 {[%clk 0:00:04]}  Ra8+ {[%clk 0:00:06]} 88. Kb6 {[%clk 0:00:04]}  Rb8+ {[%clk 0:00:03]} 89. Ka6 {[%clk 0:00:05]}  Rh8 {[%clk 0:00:04]} 90. b6 {[%clk 0:00:04]}  Kd7 {[%clk 0:00:04]} 91. Kb7 {[%clk 0:00:05]}  Rh7 {[%clk 0:00:03]} 92. Rd1+ {[%clk 0:00:04]}  Ke6+ {[%clk 0:00:03]} 93. Kb8 {[%clk 0:00:04]}  Rh2 {[%clk 0:00:03]} 94. b7 {[%clk 0:00:04]}  Rb2 {[%clk 0:00:03]} 95. Rd4 {[%clk 0:00:04]}  Ke7 {[%clk 0:00:03]} 96. Rd5 {[%clk 0:00:03]}  Ke6 {[%clk 0:00:03]} 97. Ra5 {[%clk 0:00:04]}  Kd7 {[%clk 0:00:03]} 98. Rc5 {[%clk 0:00:03]}  Ra2 {[%clk 0:00:02]} 99. Rc1 {[%clk 0:00:04]}  Ra3 {[%clk 0:00:02]} 100. Rd1+ {[%clk 0:00:04]}  Ke7 {[%clk 0:00:03]} 101. Rd4 {[%clk 0:00:04]}  Ke6 {[%clk 0:00:03]} 102. Kc7 {[%clk 0:00:04]}  Rc3+ {[%clk 0:00:02]} 103. Kb6 {[%clk 0:00:05]}  Ke5 {[%clk 0:00:03]} 104. Rd8 {[%clk 0:00:05]}  Rb3+ {[%clk 0:00:03]} 105. Ka6 {[%clk 0:00:05]}  Ra3+ {[%clk 0:00:03]} 106. Kb5 {[%clk 0:00:05]}  Rb3+ {[%clk 0:00:04]} 107. Kc6 {[%clk 0:00:06]}  Rc3+ {[%clk 0:00:04]} 108. Kd7 {[%clk 0:00:05]}  Rd3+ {[%clk 0:00:03]} 109. Ke7 {[%clk 0:00:04]} 1-0


[Site "https://www.chess.com"]

[Event "Titled Tuesday Blitz April 18 Late 2023"]
[White "Baskakov, Egor"]
[Black "Perske, Thore"]
[WhiteFideId "24197866"]
[BlackFideId "12902195"]
[WhiteElo "2212"]
[BlackElo "2336"]
[Result "1-0"]
[Round "06"]
[TimeControl "180+2"]
[Date "2023.04.18"]
[WhiteClock "0:01:21"]
[BlackClock "0:00:08"]

1. e4 {[%clk 0:03:00]}  e6 {[%clk 0:02:59]} 2. Nc3 {[%clk 0:03:00]}  d5 {[%clk 0:02:59]} 3. g3 {[%clk 0:03:00]}  Nf6 {[%clk 0:02:54]} 4. Bg2 {[%clk 0:03:00]}  c5 {[%clk 0:02:49]} 5. Nge2 {[%clk 0:02:59]}  Nc6 {[%clk 0:02:43]} 6. exd5 {[%clk 0:02:59]}  exd5 {[%clk 0:02:40]} 7. d4 {[%clk 0:02:59]}  Bf5 {[%clk 0:02:28]} 8. O-O {[%clk 0:02:49]}  Be7 {[%clk 0:01:59]} 9. Bg5 {[%clk 0:02:44]}  O-O {[%clk 0:01:49]} 10. dxc5 {[%clk 0:02:36]}  d4 {[%clk 0:01:41]} 11. Bxf6 {[%clk 0:02:34]}  Bxf6 {[%clk 0:01:36]} 12. Nd5 {[%clk 0:02:34]}  d3 {[%clk 0:01:17]} 13. cxd3 {[%clk 0:02:31]}  Bxb2 {[%clk 0:01:06]} 14. Rb1 {[%clk 0:02:31]}  Ba3 {[%clk 0:01:06]} 15. Rxb7 {[%clk 0:02:02]}  Bxc5 {[%clk 0:01:06]} 16. Qa4 {[%clk 0:01:55]}  Na5 {[%clk 0:00:45]} 17. Rb5 {[%clk 0:01:51]}  Bd7 {[%clk 0:00:22]} 18. Qxa5 {[%clk 0:01:50]}  Bxb5 {[%clk 0:00:19]} 19. Qxb5 {[%clk 0:01:51]}  Bd6 {[%clk 0:00:16]} 20. Nd4 {[%clk 0:01:42]}  Rb8 {[%clk 0:00:15]} 21. Qa4 {[%clk 0:01:40]}  Qg5 {[%clk 0:00:15]} 22. Nc6 {[%clk 0:01:37]}  Rb2 {[%clk 0:00:11]} 23. Qxa7 {[%clk 0:01:34]}  Qd2 {[%clk 0:00:11]} 24. Nce7+ {[%clk 0:01:25]}  Kh8 {[%clk 0:00:10]} 25. Nf5 {[%clk 0:01:22]}  Be5 {[%clk 0:00:08]} 26. Qe7 {[%clk 0:01:21]} 1-0


[Site "https://www.chess.com"]

[Event "Titled Tuesday Blitz April 18 Late 2023"]
[White "Fier, Alexandr"]
[Black "Melikyan, Gnel"]
[WhiteFideId "2107139"]
[BlackFideId "54109990"]
[WhiteElo "2610"]
[BlackElo "2138"]
[Result "0-1"]
[Round "06"]
[TimeControl "180+2"]
[Date "2023.04.18"]
[WhiteClock "0:02:09"]
[BlackClock "0:00:59"]

1. d4 {[%clk 0:03:00]}  Nf6 {[%clk 0:02:58]} 2. Bg5 {[%clk 0:03:01]}  c6 {[%clk 0:02:56]} 3. Bxf6 {[%clk 0:03:00]}  exf6 {[%clk 0:02:56]} 4. e4 {[%clk 0:03:01]}  d5 {[%clk 0:02:56]} 5. Nc3 {[%clk 0:03:00]}  Bb4 {[%clk 0:02:56]} 6. exd5 {[%clk 0:02:58]}  Qxd5 {[%clk 0:02:56]} 7. Nf3 {[%clk 0:02:58]}  O-O {[%clk 0:02:55]} 8. Be2 {[%clk 0:02:58]}  Re8 {[%clk 0:02:54]} 9. O-O {[%clk 0:02:59]}  Qa5 {[%clk 0:02:53]} 10. Qd3 {[%clk 0:02:52]}  Bf5 {[%clk 0:02:51]} 11. Qd2 {[%clk 0:02:53]}  Nd7 {[%clk 0:02:44]} 12. a3 {[%clk 0:02:53]}  Bxc3 {[%clk 0:02:43]} 13. bxc3 {[%clk 0:02:54]}  Nb6 {[%clk 0:02:39]} 14. Rfe1 {[%clk 0:02:54]}  Re7 {[%clk 0:02:29]} 15. Bf1 {[%clk 0:02:52]}  Rxe1 {[%clk 0:02:24]} 16. Rxe1 {[%clk 0:02:52]}  Qxa3 {[%clk 0:02:24]} 17. c4 {[%clk 0:02:51]}  Rd8 {[%clk 0:02:15]} 18. Qf4 {[%clk 0:02:50]}  Be6 {[%clk 0:02:11]} 19. Qc7 {[%clk 0:02:49]}  Rd7 {[%clk 0:02:08]} 20. Qb8+ {[%clk 0:02:48]}  Qf8 {[%clk 0:02:08]} 21. Qxa7 {[%clk 0:02:48]}  Nxc4 {[%clk 0:02:07]} 22. c3 {[%clk 0:02:41]}  h6 {[%clk 0:02:06]} 23. h3 {[%clk 0:02:41]}  Bd5 {[%clk 0:01:46]} 24. Nh4 {[%clk 0:02:41]}  g6 {[%clk 0:01:43]} 25. Bd3 {[%clk 0:02:39]}  Kg7 {[%clk 0:01:39]} 26. Qa1 {[%clk 0:02:30]}  Re7 {[%clk 0:01:38]} 27. Rd1 {[%clk 0:02:25]}  Qe8 {[%clk 0:01:35]} 28. Qb1 {[%clk 0:02:26]}  Nd2 {[%clk 0:01:31]} 29. Qc2 {[%clk 0:02:20]}  Re1+ {[%clk 0:01:31]} 30. Kh2 {[%clk 0:02:14]}  Rxd1 {[%clk 0:01:11]} 31. Qxd1 {[%clk 0:02:14]}  Ne4 {[%clk 0:01:10]} 32. c4 {[%clk 0:02:14]}  Nxf2 {[%clk 0:01:09]} 33. Qf1 {[%clk 0:02:14]}  Nxd3 {[%clk 0:01:06]} 34. Qxd3 {[%clk 0:02:15]}  Qe4 {[%clk 0:01:04]} 35. Qg3 {[%clk 0:02:10]}  Bxc4 {[%clk 0:01:02]} 36. Nf3 {[%clk 0:02:10]}  Bd5 {[%clk 0:01:01]} 37. Ne1 {[%clk 0:02:10]}  Qxd4 {[%clk 0:00:59]} 38. Qc7 {[%clk 0:02:09]}  Qe5+ {[%clk 0:00:59]} 0-1


[Site "https://www.chess.com"]